{"text_format":"3","workbook":"xlsx","n_sheets":1,"sheets":["Списък с продукти"],"not_rendered":{"images":1,"defined_names":3},"read":"whole","date_system":"1900"}

{"sheet":"Списък с продукти","index":0,"n_rows":31,"n_cols":8,"rows_kept":31}
[null,"Списък с продукти"]
[null,"ДАТА"]
[null,"Готово?","Артикул","Категория","Количество","Цена","Разширена цена","Марка/коментари"]
[null,null,"Портокали","Продукти",null,null,{"$f":"IFERROR(SUM(СписъкПродукти[[#This Row],[Количество]]*СписъкПродукти[[#This Row],[Цена]]), \"\")","v":{"v":0,"d":"0.00 лв."}}]
[null,null,"Ябълки","Продукти",null,null,{"$f":"IFERROR(SUM(СписъкПродукти[[#This Row],[Количество]]*СписъкПродукти[[#This Row],[Цена]]), \"\")","v":{"v":0,"d":"0.00 лв."}}]
[null,null,"Банани","Продукти",null,null,{"$f":"IFERROR(SUM(СписъкПродукти[[#This Row],[Количество]]*СписъкПродукти[[#This Row],[Цена]]), \"\")","v":{"v":0,"d":"0.00 лв."}}]
[null,null,"Маруля","Продукти",null,null,{"$f":"IFERROR(SUM(СписъкПродукти[[#This Row],[Количество]]*СписъкПродукти[[#This Row],[Цена]]), \"\")","v":{"v":0,"d":"0.00 лв."}}]
[null,null,"Домати","Продукти",null,null,{"$f":"IFERROR(SUM(СписъкПродукти[[#This Row],[Количество]]*СписъкПродукти[[#This Row],[Цена]]), \"\")","v":{"v":0,"d":"0.00 лв."}},"  "]
[null,null,"Мляко ","Млечни продукти",null,null,{"$f":"IFERROR(SUM(СписъкПродукти[[#This Row],[Количество]]*СписъкПродукти[[#This Row],[Цена]]), \"\")","v":{"v":0,"d":"0.00 лв."}}]
[null,null,"Сирене","Млечни продукти",null,null,{"$f":"IFERROR(SUM(СписъкПродукти[[#This Row],[Количество]]*СписъкПродукти[[#This Row],[Цена]]), \"\")","v":{"v":0,"d":"0.00 лв."}}]
[null,null,"Яйца","Млечни продукти",null,null,{"$f":"IFERROR(SUM(СписъкПродукти[[#This Row],[Количество]]*СписъкПродукти[[#This Row],[Цена]]), \"\")","v":{"v":0,"d":"0.00 лв."}}]
[null,null,"Извара","Млечни продукти",null,null,{"$f":"IFERROR(SUM(СписъкПродукти[[#This Row],[Количество]]*СписъкПродукти[[#This Row],[Цена]]), \"\")","v":{"v":0,"d":"0.00 лв."}}]
[null,null,"Говеждо месо","Месо",null,null,{"$f":"IFERROR(SUM(СписъкПродукти[[#This Row],[Количество]]*СписъкПродукти[[#This Row],[Цена]]), \"\")","v":{"v":0,"d":"0.00 лв."}}]
[null,null,"Птици","Месо",null,null,{"$f":"IFERROR(SUM(СписъкПродукти[[#This Row],[Количество]]*СписъкПродукти[[#This Row],[Цена]]), \"\")","v":{"v":0,"d":"0.00 лв."}}]
[null,null,"Шунка","Месо",null,null,{"$f":"IFERROR(SUM(СписъкПродукти[[#This Row],[Количество]]*СписъкПродукти[[#This Row],[Цена]]), \"\")","v":{"v":0,"d":"0.00 лв."}}]
[null,null,"Сок","Напитки",null,null,{"$f":"IFERROR(SUM(СписъкПродукти[[#This Row],[Количество]]*СписъкПродукти[[#This Row],[Цена]]), \"\")","v":{"v":0,"d":"0.00 лв."}}]
[null,null,"Кафе","Напитки",null,null,{"$f":"IFERROR(SUM(СписъкПродукти[[#This Row],[Количество]]*СписъкПродукти[[#This Row],[Цена]]), \"\")","v":{"v":0,"d":"0.00 лв."}}]
[null,null,"Чай","Напитки",null,null,{"$f":"IFERROR(SUM(СписъкПродукти[[#This Row],[Количество]]*СписъкПродукти[[#This Row],[Цена]]), \"\")","v":{"v":0,"d":"0.00 лв."}}]
[null,null,"Вода","Напитки",null,null,{"$f":"IFERROR(SUM(СписъкПродукти[[#This Row],[Количество]]*СписъкПродукти[[#This Row],[Цена]]), \"\")","v":{"v":0,"d":"0.00 лв."}}]
[null,null,"Юфка","Паста",null,null,{"$f":"IFERROR(SUM(СписъкПродукти[[#This Row],[Количество]]*СписъкПродукти[[#This Row],[Цена]]), \"\")","v":{"v":0,"d":"0.00 лв."}}]
[null,null,"Ориз","Паста",null,null,{"$f":"IFERROR(SUM(СписъкПродукти[[#This Row],[Количество]]*СписъкПродукти[[#This Row],[Цена]]), \"\")","v":{"v":0,"d":"0.00 лв."}}]
[null,null,"Консервирани","Супа",null,null,{"$f":"IFERROR(SUM(СписъкПродукти[[#This Row],[Количество]]*СписъкПродукти[[#This Row],[Цена]]), \"\")","v":{"v":0,"d":"0.00 лв."}}]
[null,null,"Суха смес","Супа",null,null,{"$f":"IFERROR(SUM(СписъкПродукти[[#This Row],[Количество]]*СписъкПродукти[[#This Row],[Цена]]), \"\")","v":{"v":0,"d":"0.00 лв."}}]
[null,null,"Хляб","Пекарна",null,null,{"$f":"IFERROR(SUM(СписъкПродукти[[#This Row],[Количество]]*СписъкПродукти[[#This Row],[Цена]]), \"\")","v":{"v":0,"d":"0.00 лв."}}]
[null,null,"Чипс","Закуски",null,null,{"$f":"IFERROR(SUM(СписъкПродукти[[#This Row],[Количество]]*СписъкПродукти[[#This Row],[Цена]]), \"\")","v":{"v":0,"d":"0.00 лв."}}]
[null,null,"Гевречета","Закуски",null,null,{"$f":"IFERROR(SUM(СписъкПродукти[[#This Row],[Количество]]*СписъкПродукти[[#This Row],[Цена]]), \"\")","v":{"v":0,"d":"0.00 лв."}}]
[null,null,"Сладолед","Закуски",null,null,{"$f":"IFERROR(SUM(СписъкПродукти[[#This Row],[Количество]]*СписъкПродукти[[#This Row],[Цена]]), \"\")","v":{"v":0,"d":"0.00 лв."}}]
[null,null,"Бисквитки","Закуски",null,null,{"$f":"IFERROR(SUM(СписъкПродукти[[#This Row],[Количество]]*СписъкПродукти[[#This Row],[Цена]]), \"\")","v":{"v":0,"d":"0.00 лв."}}]
[null,null,"Хартиени чинии","Доставки",null,null,{"$f":"IFERROR(SUM(СписъкПродукти[[#This Row],[Количество]]*СписъкПродукти[[#This Row],[Цена]]), \"\")","v":{"v":0,"d":"0.00 лв."}}]
[null,null,"Салфетки","Доставки",null,null,{"$f":"IFERROR(SUM(СписъкПродукти[[#This Row],[Количество]]*СписъкПродукти[[#This Row],[Цена]]), \"\")","v":{"v":0,"d":"0.00 лв."}}]
[{"$nulls":6},{"$f":"SUBTOTAL(109,СписъкПродукти[Разширена цена])","v":{"v":0,"d":"0.00 лв."}}]